Cogmind - Beta 13 @@@ ROGUE MODE // 2024.04.27 @ 22:22:07 Player: CONM Result: Destroyed by Y-45 Defender with Beam Rifle Performance ------------- Evolutions (1) 500 Regions Visited (2) 400 Robots Destroyed (5) 25 Value Destroyed (150) 150 Prototype IDs (0) 0 Alien Tech Used (0) 0 Bonus (0) 0 TOTAL SCORE: 1075 Bonus ------- None Cogmind --------- Core Integrity 0/400 Matter 239/300 Energy 100/100 System Corruption 0% Temperature Cool (9) Movement Core (50) Location -9/Materials Parts ------- > --- POWER (1) -------- (None) > --- PROPULSION (3) --- (None) > --- UTILITY (3) ------ Improved Heat Sink Improved Targeting Computer > --- WEAPON (2) ------- (None) > --- INVENTORY (5) ---- Hardened Light Armor Plating Hardened Light Armor Plating Spread Laser Peak State ------------ > --- POWER ------------ Deuterium Engine > --- PROPULSION ------- Airjet Airjet Airjet > --- UTILITY ---------- Improved Targeting Computer ECM Suite > --- WEAPON ----------- Light Cannon > --- INVENTORY -------- Deuterium Engine Airjet Cooling System ECM Suite ECM Suite [Rating: 17] Favorites ----------- Power Ion Engine Engine Ion Engine Propulsion Improved Treads Treads Improved Treads Leg Aluminum Leg Hover Unit Airjet Utility Improved Targeting Computer Device Sensor Array Storage Small Storage Unit Processor Improved Targeting Computer Weapon Assault Rifle Energy Gun EM Pulse Gun Ballistic Gun Assault Rifle Ballistic Cannon Light Cannon Build | -11 -10 -9 ------- Run | Yrd Mat Mat Slots Evolved 2 | . . 2 Power . | . . . Propulsion 1 | . . 1 Utility 1 | . . 1 Weapon . | . . . Parts Attached 26 | 5 9 12 Power 3 | . 1 2 Engine 3 | . 1 2 Core . | . . . Reactor . | . . . Propulsion 10 | 2 3 5 Treads 4 | . 3 1 Leg 2 | 2 . . Wheel . | . . . Hover 4 | . . 4 Flight . | . . . Utility 6 | 1 2 3 Device 4 | . 1 3 Storage 1 | 1 . . Processor 1 | . 1 . Hackware . | . . . Protection . | . . . Artifact . | . . . Weapon 7 | 2 3 2 Energy Gun 3 | 1 2 . Energy Cannon . | . . . Ballistic Gun 3 | 1 1 1 Ballistic Cannon 1 | . . 1 Launcher . | . . . Special Weapon . | . . . Impact Weapon . | . . . Slashing Weapon . | . . . Piercing Weapon . | . . . Special Melee Weapon . | . . . Unidentified Prototypes . | . . . Parts Lost 19 | . 9 10 Power 3 | . 1 2 Propulsion 7 | . 3 4 Utility 3 | . 1 2 Weapon 6 | . 4 2 Highest Loss Streak 9 | . 6 9 To Critical Strikes . | . . . Average Slot Usage (%) 72 | . 83 57 Engine 7 | . 7 6 Treads 11 | . 18 2 Leg 4 | . 7 . Hover 7 | . . 17 Device 11 | . 11 10 Processor 12 | . 13 11 Energy Gun 3 | . 6 . Ballistic Gun 9 | . 15 . Ballistic Cannon 3 | . . 8 Naked Turns . | . . . Heaviest Build 17 | 9 10 17 Greatest Support 46 | 20 46 24 Greatest Overweight (x) 1 | . . 1 Average Overweight (x) . | . . . Largest Inventory Capacity 8 | 8 8 5 Average Capacity 5 | 7 5 5 Most Carried 5 | 5 5 5 Average Carried 3 | 2 2 3 Final Capacity 8 | 8 5 5 Final Carried 3 | 3 1 3 Class Distribution -------------------- 100% | Mutant Dominant Class ---------------- Mutant | -10/Materials Mutant | -9/Materials Resources | -11 -10 -9 ----------- Run | Yrd Mat Mat Matter Collected 331 | 127 104 100 Remotely . | . . . Salvage Created 167 | . 41 126 Parts 9 | . 3 6 Haulers Intercepted . | . . . Recyclers Shooed . | . . . Parts Field Recycled . | . . . Retrieved Matter . | . . . Parts Self-Destructed . | . . . Prevented . | . . . Kills | -11 -10 -9 ------- Run | Yrd Mat Mat Combat Hostiles Destroyed 4 | . 1 3 Guns 2 | . 1 1 Cannons 2 | . . 2 Classes Destroyed 4 | . 2 2 Worker 1 | . 1 . Grunt 2 | . 1 1 Brawler 1 | . . 1 Sentry 1 | . . 1 Best Kill Streak 3 | . 2 3 Combat Bots Only 3 | . 1 3 Max Kills in Single Turn 1 | . 1 1 Gunslinging . | . . . Exploded . | . . . Melee . | . . . Uniques/NPCs Destroyed . | . . . Combat | -11 -10 -9 -------- Run | Yrd Mat Mat Hostile Shots Fired 280 | . 129 151 Missed 84 | . 39 45 Damage Taken 2173 | . 1130 1043 Core 639 | . 225 414 Absorbed by Shields . | . . . Core Remaining (%) 55 | 100 10 . Volleys Fired 13 | . 5 8 Largest 2 | . 2 2 Hottest 60 | . 60 58 Shots Fired 18 | . 6 12 Gun 12 | . 6 6 Cannon 6 | . . 6 Launcher . | . . . Special . | . . . Kinetic 14 | . 2 12 Thermal 2 | . 2 . Explosive . | . . . Electromagnetic 2 | . 2 . Robot Hit Streak 7 | . 2 7 Robot Miss Streak 3 | . 2 3 Penetration Max . | . . . Secondary Targets . | . . . Shots Hit Robots 13 | . 4 9 Core Hits 8 | . 2 6 Critical Kills . | . . . Critical Parts Destroyed . | . . . Critical Strikes 1 | . 1 . Burn 1 | . 1 . Melee Attacks . | . . . Impact . | . . . Slashing . | . . . Piercing . | . . . Sneak Attacks . | . . . Combat Hostiles . | . . . Follow-up Attacks . | . . . Damage Inflicted 233 | . 64 169 Guns 156 | . 61 95 Cannons 69 | . . 69 Explosions . | . . . Melee . | . . . Ramming 8 | . 3 5 Kinetic 177 | . 13 164 Thermal 26 | . 26 . Explosive . | . . . Electromagnetic 22 | . 22 . Impact . | . . . Slashing . | . . . Piercing . | . . . Highest Corruption . | . . . Average Corruption . | . . . Corruption Purged . | . . . Corruption Blocked . | . . . Overload Shots . | . . . Overflow Damage 2 | . . 2 Projectiles 2 | . . 2 Explosions . | . . . Melee . | . . . Knockbacks 1 | . . 1 Impact . | . . . Kinetic 1 | . . 1 Secondary . | . . . Self-Inflicted Damage 1 | . . 1 Shots . | . . . Rammed 6 | . 3 3 Targets Rammed 7 | . 4 3 Kicked . | . . . Crushed 1 | . 1 . Highest Temperature 30 | . 30 1 Average Temperature 15 | . 17 1 Received Heat Transfer 876 | . 651 225 Siege Activations . | . . . Robots Corrupted . | . . . Combat Hostiles . | . . . Parts Fried . | . . . Impact Corruptions . | . . . Robots Melted . | . . . Combat Hostiles . | . . . Parts Melted . | . . . Heat Transferred 148 | . 148 . Parts Sabotaged . | . . . Parts Stolen . | . . . Parts Stripped . | . . . Power Chain Reactions . | . . . Alert | -11 -10 -9 ------- Run | Yrd Mat Mat Peak Influence 175 | . 30 175 Initial . | . . . Average 32 | . 11 67 Maximum Alert Level . | . . . Low Security (%) 100 | 100 100 100 Level 1 . | . . . Level 2 . | . . . Level 3 . | . . . Level 4 . | . . . Level 5 . | . . . High Security . | . . . Max Security . | . . . Squads Dispatched 2 | . . 2 Investigation . | . . . Extermination . | . . . Reinforcement 2 | . . 2 Assault . | . . . Garrison . | . . . Intercept . | . . . Searches Triggered . | . . . Construction Impeded . | . . . Haulers Reinforced . | . . . Active Scanning Responses . | . . . Cargo Convoy Interrupts . | . . . Stealth | -11 -10 -9 --------- Run | Yrd Mat Mat Distress Signals 4 | . 2 2 Communications Jammed . | . . . Distress Signals . | . . . Times Spotted 38 | . 12 26 Peak Tracking Total 19 | . 7 19 Tactical Retreats 6 | . . 6 Traps | -11 -10 -9 ------- Run | Yrd Mat Mat Traps Triggered . | . . . Indirectly . | . . . Trap Hack Attempts . | . . . Triggered . | . . . Disarmed . | . . . Reprogrammed . | . . . Reused . | . . . Traps Extracted . | . . . Installed . | . . . Triggered . | . . . Machines | -11 -10 -9 ---------- Run | Yrd Mat Mat Machines Disabled . | . . . Max in Single Turn . | . . . Machines Repaired . | . . . Machines Dismantled . | . . . Machines Sabotaged . | . . . Overloaded Fab Kills . | . . . Hacking | -11 -10 -9 --------- Run | Yrd Mat Mat Machines Accessed . | . . . Terminals . | . . . Fabricators . | . . . Repair Stations . | . . . Recycling Units . | . . . Scanalyzers . | . . . Garrison Access . | . . . Total Hacks . | . . . Successful . | . . . Failed . | . . . Catastrophic . | . . . Database Lockouts . | . . . Manual . | . . . Terminals . | . . . Fabricators . | . . . Repair Stations . | . . . Recycling Units . | . . . Scanalyzers . | . . . Garrison Access . | . . . Terminal Hacks . | . . . Fabricator Hacks . | . . . Repair Station Hacks . | . . . Recycling Unit Hacks . | . . . Scanalyzer . | . . . Garrison Access Hacks . | . . . Unauthorized Hacks . | . . . Terminals . | . . . Fabricators . | . . . Repair Stations . | . . . Recycling Units . | . . . Scanalyzers . | . . . Garrison Access . | . . . Data Cores Recovered . | . . . Used . | . . . Hacking Detections . | . . . Full Trace Events . | . . . Feedback Events . | . . . Feedback Blocked . | . . . Robot Schematics Acquired . | . . . Robots Built . | . . . Authchips . | . . . Time . | . . . Total Robot Build Rating . | . . . Part Schematics Acquired . | . . . Parts Built . | . . . Authchips . | . . . Time . | . . . Total Part Build Rating . | . . . Parts Repaired . | . . . Time . | . . . Parts Recycled . | . . . Recycled Matter . | . . . Retrieved Matter . | . . . Retrieved Components . | . . . Parts Scanalyzed . | . . . Part Schematics Acquired . | . . . Parts Damaged . | . . . Bothacking | -11 -10 -9 ------------ Run | Yrd Mat Mat Used RIF Installer . | . . . Robots Hacked . | . . . Non-combat . | . . . Combat . | . . . Robot Hacks Applied . | . . . Relay Couplers Released . | . . . Fabnet Peak Effective % . | . . . Robots Rewired . | . . . Allies Hacked . | . . . Hacks Repelled . | . . . Allies | -11 -10 -9 -------- Run | Yrd Mat Mat Total Allies . | . . . Largest Group . | . . . Highest-Rated Group . | . . . Highest-Rated Ally . | . . . Total Orders . | . . . Ally Attacks . | . . . Total Damage . | . . . Kills . | . . . Allies Corrupted . | . . . Allies Melted . | . . . Intel | -11 -10 -9 ------- Run | Yrd Mat Mat Robot Analysis Total . | . . . Derelict Logs Recovered . | . . . Drone Launches . | . . . Drone Recoveries . | . . . Exploration | -11 -10 -9 ------------- Run | Yrd Mat Mat Turns Passed 854 | 69 445 340 Spaces Moved 725 | 54 305 366 Core 123 | 12 49 62 Treads 202 | . 169 33 Legs 129 | 42 87 . Wheels . | . . . Hover 271 | . . 271 Flight . | . . . Fastest Speed 50 | 50 50 50 Average Speed 96 | 104 130 66 Slowest Speed 160 | 120 160 160 Overloaded Moves . | . . . Propulsion Burnouts . | . . . Robots Hopped . | . . . Cave-ins Triggered . | . . . Exploration Rate (%) 26 | 4 46 30 Regions Visited 2 Branch Regions . Pre-discovered Areas . | . . . Known Exits Taken . | . . . Unknown Exits Taken 2 | 1 1 . Scrap Searched . | . . . Spaces Dug . | . . . Terrain Destroyed . | . . . Melee . | . . . Projectile . | . . . AOE . | . . . Terrain Rammed . | . . . Walls Destroyed . | . . . Machines Disabled . | . . . Actions | -11 -10 -9 --------- Run | Yrd Mat Mat Total 864 | 66 344 454 Wait 53 | . 7 46 Move 723 | 53 304 366 Hop . | . . . Pick Up 33 | 8 9 16 Fast Attach . | . . . Attach 23 | 5 6 12 Detach . | . . . Swap 3 | . 3 . Drop 9 | . 6 3 Fire 13 | . 5 8 Melee . | . . . Ram 3 | . . 3 Kick . | . . . Crush 4 | . 4 . Escape Stasis . | . . . Rewire . | . . . Trap . | . . . Miscellaneous . | . . . Route ------- -11/Scrapyard -10/Materials -9/Materials History --------- Turn | Location | Event 8 | -11/Scrapyard | Discovered new exit (range 14) 70 | -11/Scrapyard | Entered Materials 315 | -10/Materials | Build established: Mutant 431 | -10/Materials | Lost 3 parts (1p2w) 468 | -10/Materials | Core integrity fell below 50% 489 | -10/Materials | Core integrity fell below 20% 508 | -10/Materials | Discovered new exit (range 13) 515 | -10/Materials | Entered another Materials area 515 | -9/Materials | Evolved 2 slots: Propulsion x1, Utility x1 522 | -9/Materials | Lost 6 parts (3n1u2w) 831 | -9/Materials | Core integrity fell below 50% 842 | -9/Materials | Core integrity fell below 20% 855 | -9/Materials | Destroyed by Y-45 Defender with Beam Rifle Last Messages --------------- 00801_ K-01 Serf collects debris. 00802_ S-10 Pest destroyed. 00804_ Airjet destroyed. 00805_ B-36 Bruiser destroyed. 00805_ K-01 Serf collects debris. 00805_ Shotgun destroyed. 00807_ Acquired 50 matter. 00808_ Acquired 48 matter. 00809_ R-06 Scavenger collects Lgt. Treads. 00812_ ECM Suite destroyed. 00813_ R-06 Scavenger collects Lgt. Armor Plating. 00816_ R-06 Scavenger collects Hvy. Assault Rifle. 00833_ Acquired Spread Laser. 00835_ Acquired Hrd. Light Armor Plating. 00836_ Deuterium Engine destroyed. 00839_ ECM Suite destroyed. 00844_ Acquired Hrd. Light Armor Plating. 00849_ Airjet destroyed. Map ----- +----------------------------------------------------+ | | | | | | | | | | | | | | | | | | | | | | | | | | | | | | | | | | | | | | | | | | | | | | | | | ???????????????????????##############????????????? | | ???????????????????????# @ # #???????????? | | ???????????????????????# Ysgs# """ #???????????? | | ???????????????????????#"""l # """ #???????????? | | ###????????????????????#""" g # """ #??????????## | | #????????????????????#""" g # #??????????# | | #????????????????????# Yg # #??????????# | | #########################/######+############## | | Y + | | #########################+#/# ###/####+#### # | | #???????????????????????# # # ## # | | ###############?????????#[ # # """ # ## | | #?????????# # # "R ## #? | | #?????????# # # """ !!!## #? | | #?????????# !!# # "" !!!## #? | | ########### #?????????#[!!# # = !!!## #? | | # ??????????????# [^[# ####/######## #? | | # """""???????????????###### #?#[=%####### #? | | + ""T""????????????????????# #?# * ## # #? | | # #??????????????????# #?# ## # #? | | #?? #??????????????????# #?# ## # #? | | #????""" #??????????????????# ### ## # #? | | #??????" ???????????????????# ## # # #? | | #???????????????????????????? ?# = # # #? | | #????????????????????????????????# %T # # #? | | #????????????????????????????????# * # + #? | +----------------------------------------------------+ Best States ------------- Heat Dissipation 42 Energy Generation 14 Energy Capacity 275 Matter Stores 264 Matter Capacity 300 Sight Range 16 Robot Scan Range 14 Terrain Scan Density 10 ECM Strength 1 Evasion (%) 55 Targeting Accuracy 6 Recoil Reduction 2 Item Schematics ----------------- None Robot Schematics ------------------ None Fabricated ------------ Nothing Alien Tech Used ----------------- None Achievements -------------- None Challenges ------------ None Game ------ Seed NeutrinoAblativeSpecial Manual? 0 Play Time 00:15:51 Cumulative 7.7 hours Start 2024.04.27 @ 22:06:16 End 2024.04.27 @ 22:22:07 Sessions 1 Manual Loads 0 Difficulty Rogue Special Mode None Game No. 19 Rogue 19 Adventurer 0 Explorer 0 Win Type - Total 0 Types 0/0/0/0/0/0/0/0/0 Lore% 12 Gallery% 10 Achievement% 10 Wizard Run 0 Options --------- Layout 1 ASCII 0 Keyboard 0 Movement Arrows Keybinds 0 Fullscreen 1 Font 24/Smallcaps Map View 50x35 Zoom Use 0% Tactical HUD 1 Map Filters NONE Filters NONE Steam 1 RUN: f708b422-3d4d-4ff9-9b89-bd6d5bf78647